Workbook

Sheet SAŽETAK PRORAČUNA
B2: SAŽETO IZVJEŠĆE O PRORAČUNU | I2: =YEAR(TODAY()) -> 2019
B3: Naziv tvrtke
B4: Sive ćelije izračunavaju se za vas i, općenito uzevši, ne treba ih mijenjati.
B5: Sažetak dobiti i gubitka | C5: Stvarne vrijednosti za svibanj | D5: Ciljevi za svibanj | E5: Mjesečna varijanca | F5: Stvarne vrijednosti za tekuću godinu | G5: Ciljevi za tekuću godinu | H5: Varijanca u tekućoj godini | I5: Bilješke
B6: Prihod | C6: 1,200,000.00 kn | D6: 1,100,000.00 kn | E6: =C6-D6 -> 100,000.00 kn | F6: 6,200,000.00 kn | G6: 6,000,000.00 kn | H6: =F6-G6 -> 200,000.00 kn | I6: Zbog boljih rezultata u zapadnoj regiji prekoračili smo cilj prihoda za svibanj za 9 %.
B7: Bruto marža | C7: 150,000.00 kn | D7: 160,000.00 kn | E7: =C7-D7 -> -10,000.00 kn | F7: 640,000.00 kn | G7: 750,000.00 kn | H7: =F7-G7 -> -110,000.00 kn
B8: Postotak bruto marže | C8: =IF(C6=0,0,C7/C6) -> 12.5% | D8: =IF(D6=0,0,D7/D6) -> 14.5% | E8: =C8-D8 -> -2.0% | F8: =IF(F6=0,0,F7/F6) -> 10.3% | G8: =IF(G6=0,0,G7/G6) -> 12.5% | H8: =F8-G8 -> -2.2%
B9: Prodaja iz novih proizvoda | C9: 200,000.00 kn | D9: 150,000.00 kn | E9: =C9-D9 -> 50,000.00 kn | F9: 900,000.00 kn | G9: 750,000.00 kn | H9: =F9-G9 -> 150,000.00 kn
B10: Razrada prodaje po regijama:
B11: Svjeveroistočna regija | C11: 400,000.00 kn | D11: 400,000.00 kn | E11: =C11-D11 -> 0.00 kn | F11: 2,200,000.00 kn | G11: 2,000,000.00 kn | H11: =F11-G11 -> 200,000.00 kn
B12: Središnja regija | C12: 400,000.00 kn | D12: 400,000.00 kn | E12: =C12-D12 -> 0.00 kn | F12: 2,400,000.00 kn | G12: 2,000,000.00 kn | H12: =F12-G12 -> 400,000.00 kn
B13: Zapadna regija | C13: 400,000.00 kn | D13: 300,000.00 kn | E13: =C13-D13 -> 100,000.00 kn | F13: 1,600,000.00 kn | G13: 2,000,000.00 kn | H13: =F13-G13 -> -400,000.00 kn
B14: Izdaci i marža:
B15: Prodajni, opći i administrativni izdaci | C15: 100,000.00 kn | D15: 120,000.00 kn | E15: =D15-C15 -> 20,000.00 kn | F15: 500,000.00 kn | G15: 600,000.00 kn | H15: =G15-F15 -> 100,000.00 kn
B16: Operativna dobit (gubitak) prije oporezivanja | C16: 50,000.00 kn | D16: 40,000.00 kn | E16: =C16-D16 -> 10,000.00 kn | F16: 140,000.00 kn | G16: 150,000.00 kn | H16: =F16-G16 -> -10,000.00 kn
B17: Operativna marža | C17: =IF(C6=0,0,C16/C6) -> 4% | D17: =IF(D6=0,0,D16/D6) -> 4% | E17: =C17-D17 -> 1% | F17: =IF(F6=0,0,F16/F6) -> 2% | G17: =IF(G6=0,0,G16/G6) -> 3% | H17: =F17-G17 -> -0%
B19: Sažetak bilance stanja | C19: Stvarne vrijednosti za svibanj | D19: Ciljevi za svibanj | E19: Mjesečna varijanca | F19: Stvarne vrijednosti za tekuću godinu | G19: Ciljevi za tekuću godinu | H19: Varijanca u tekućoj godini | I19: Bilješke
B20: Solventnost na kraju razdoblja | C20: 35,000.00 kn | D20: 50,000.00 kn | E20: =C20-D20 -> -15,000.00 kn | F20: 35,000.00 kn | G20: 50,000.00 kn | H20: =F20-G20 -> -15,000.00 kn | I20: Razlika u likvidnosti nastala je zbog novčanih podmirenja pravnog spora s naziv tvrtke 8. svibnja.
B21: Potraživanja | C21: 20,000.00 kn | D21: 22,000.00 kn | E21: -2,000.00 kn | F21: 20,000.00 kn | G21: 22,000.00 kn | H21: -2,000.00 kn
B22: Zalihe | C22: 25,000.00 kn | D22: 30,000.00 kn | E22: -5,000.00 kn | F22: 25,000.00 kn | G22: 30,000.00 kn | H22: -5,000.00 kn
B23: Ukupna likvidna sredstva | C23: 75,000.00 kn | D23: 90,000.00 kn | E23: -15,000.00 kn | F23: 75,000.00 kn | G23: 90,000.00 kn | H23: -15,000.00 kn
B24: Imovina potrebna za uvjete ugovora o kreditiranju | C24: 25,000.00 kn | D24: 25,000.00 kn | E24: 0.00 kn | F24: 25,000.00 kn | G24: 25,000.00 kn | H24: 0.00 kn
B25: Razlika za uvjete ugovora o kreditiranju | C25: =C23-C24 -> 50,000.00 kn | D25: =D23-D24 -> 65,000.00 kn | E25: -15,000.00 kn | F25: =F23-F24 -> 50,000.00 kn | G25: =G23-G24 -> 65,000.00 kn | H25: -15,000.00 kn
B26: Druge stavke bilance stanja:
B27: Imovina, postrojenje i oprema | C27: 80,000.00 kn | D27: 78,000.00 kn | E27: =C27-D27 -> 2,000.00 kn | F27: 80,000.00 kn | G27: 78,000.00 kn | H27: =F27-G27 -> 2,000.00 kn | I27: Razlika zbog kupnje novog stroja za prskanje u postrojenju B.
B28: Dugovanja | C28: 60,000.00 kn | D28: 60,000.00 kn | E28: =D28-C28 -> 0.00 kn | F28: 60,000.00 kn | G28: 60,000.00 kn | H28: =F28-G28 -> 0.00 kn
B29: Dugoročna pasiva | C29: 30,000.00 kn | D29: 31,000.00 kn | E29: =D29-C29 -> 1,000.00 kn | F29: 30,000.00 kn | G29: 31,000.00 kn | H29: =G29-F29 -> 1,000.00 kn
B30: Udjeli dioničara | C30: 300,000.00 kn | D30: 297,500.00 kn | E30: =C30-D30 -> 2,500.00 kn | F30: 300,000.00 kn | G30: 297,500.00 kn | H30: =F30-G30 -> 2,500.00 kn
B32: Sažetak operativne metrike | C32: Stvarne vrijednosti za svibanj | D32: Ciljevi za svibanj | E32: Mjesečna varijanca | F32: Stvarne vrijednosti za tekuću godinu | G32: Ciljevi za tekuću godinu | H32: Varijanca u tekućoj godini | I32: Bilješke
B33: Broj nedostataka po 1000 uređaja proizvedeno | C33: 2.3 | D33: 1.0 | E33: =D33-C33 -> -1.3 | F33: 1.5 | G33: 1.0 | H33: =F33-G33 -> 0.5 | I33: Problemi s kvalitetom nastali su zbog primjene pogrešne boje na proizvodnoj liniji 3; rukovoditelj je implementirao nove detektivske kontrole.
B34: Proizvodni kapacitet – jedinice po mjesecu | C34: 200,000 | D34: 220,000 | E34: =C34-D34 -> -20,000 | F34: 1,100,000 | G34: 1,150,000 | H34: =F34-G34 -> -50,000
B35: Otvoreni dani prodaje | C35: 35 | D35: 25 | E35: =D35-C35 -> -10 | F35: 33 | G35: 25 | H35: =G35-F35 -> -8
B36: Broj novih narudžbi | C36: 19 | D36: 15 | E36: =C36-D36 -> 4 | F36: 83 | G36: 75 | H36: =F36-G36 -> 8
B38: Sažetak podataka o konkurenciji | C38: Profil vaše tvrtke | D38: Konkurent 1 | E38: Konkurent 2 | F38: Konkurent 3 | G38: Konkurent 4 | H38: Ostalo | I38: Bilješke
B39: Tržišni udio | C39: 20.00% | D39: 25.00% | E39: 15.00% | F39: 5.00% | G39: 15.00% | H39: 20.00% | I39: Tržišni udio povećao se zbog snage prodaje novog proizvoda.
B40: Prihod (tekuća godina) | C40: =F6 -> 6,200,000.00 kn | D40: 7,000,000.00 kn | E40: 4,000,000.00 kn | F40: 1,500,000.00 kn | G40: 4,000,000.00 kn | H40: 6,000,000.00 kn
B41: Predstavljanja novih proizvoda (tekuća godina) | C41: 900,000.00 kn | D41: 500,000.00 kn | E41: 0.00 kn | F41: 100,000.00 kn | G41: 500,000.00 kn | H41: 0.00 kn
B42: Broj terenskih komercijalista (procijenjeno) | C42: 15 | D42: 20 | E42: 15 | F42: 10 | G42: 15 | H42: N/D

Sheet GRAFIKON DOBITI I GUBITKA
B2: GRAFIKON SAŽETKA DOBITI I GUBITKA | I2: ='SAŽETAK PRORAČUNA'!I2 -> 2019
B3: ='SAŽETAK PRORAČUNA'!B3 -> Naziv tvrtke
B5: U ovoj se ćeliji nalazi trakasti grafikon s prikazom stvarnih i ciljnih vrijednosti za mjesec i godinu.

Sheet GRAFIKON BILANCE
B2: GRAFIKON SAŽETKA BILANCE STANJA | I2: ='SAŽETAK PRORAČUNA'!I2 -> 2019
B3: ='SAŽETAK PRORAČUNA'!B3 -> Naziv tvrtke
B5: U ovoj se ćeliji nalazi trakasti grafikon koji prikazuje stvarne i ciljne mjesečne vrijednosti.
